[Event "Austrian Championship 2022"]
[Site "Vienna"]
[Date "2022.08.13"]
[Round "2.6"]
[White "Menezes, Christoph"]
[Black "Belke, Frank"]
[Result "1-0"]
[ECO "D71"]
[WhiteElo "2417"]
[BlackElo "2226"]
[Annotator "TA"]
[PlyCount "105"]
[EventDate "2022.08.12"]
[EventType "swiss"]
[EventCountry "AUT"]
[SourceTitle "playchess.com"]
[Source "ChessBase"]
[SourceQuality "1"]
[TimeControl "40/5400+30:1800+30"]

{[%evp 9,105,0,0,0,0,0,0,0,0,0,0,0,3,0,0,0,0,0,0,-15,-16,-21,0,0,0,0,10,0,12,17,69,68,68,68,68,68,68,68,69,68,68,65,70,71,69,75,118,141,129,139,197,208,225,212,241,226,210,47,48,45,95,0,0,0,98,33,28,0,97,97,97,108,96,0,0,0,86,79,237,213,266,264,257,229,337,354,552,520,1068,1064,1006,996,819,556,1053,1032,638,348]} 1. d4 {[%emt 0:00:06]} Nf6 {[%emt 0:00:11]} 2. c4 {[%emt 0:00:13]} g6 {[%emt 0:00:05]} 3. g3 {[%emt 0:00:20]} c6 {[%emt 0:00:08]} 4. Bg2 {[%emt 0:00:20]} d5 {[%emt 0:00:07]} 5. Qa4 {[%emt 0:00:23]} Bg7 {[%emt 0:03:35]} 6. cxd5 {[%emt 0:00:45] D71: Fianchetto Grünfeld: 3 g3 d5 sidelines and 5 cxd5 (without Nf3).} Nxd5 {[%emt 0:00:08]} 7. Nf3 {[%emt 0:01:21]} Nb6 {[%emt 0:02:00]} 8. Qd1 {[%emt 0:04:31] The position is equal.} Bg4 {[%emt 0:00:48]} 9. Ne5 {[%emt 0:01:21]} Bxe5 {[%emt 0:00:41]} 10. dxe5 {[%emt 0:00:06]} Qxd1+ {[%emt 0:00:03]} 11. Kxd1 {[%emt 0:00:04]} N8d7 {[%emt 0:02:28] [#]} 12. f4 $146 {[%emt 0:03:00]} ({Predecessor:} 12. h3 Be6 13. f4 O-O-O 14. Kc2 Nc5 15. Nc3 Nd5 16. Nxd5 Bxd5 17. Rg1 Bxg2 18. Rxg2 {½-½ (58) Saduakassova,D (2472)-Lagno,K (2560) St Petersburg 2018}) 12... O-O-O {[%emt 0:02:56]} 13. Ke1 {[%emt 0:01:11]} f6 {[%emt 0:08:50]} 14. h3 {[%emt 0:09:45]} Be6 {[%emt 0:00:09]} 15. exf6 {[%emt 0:01:09]} exf6 {[%emt 0:00:06]} 16. Nc3 {[%emt 0:02:52]} Rhe8 {[%emt 0:02:14]} 17. Kf2 {[%emt 0:04:59]} f5 {[%emt 0:08:37]} 18. Be3 {[%emt 0:13:37]} Nf6 {[%emt 0:01:38]} 19. Rhd1 {[%emt 0:04:33]} Bd5 {[%emt 0:00:48]} (19... Rxd1 $11 20. Rxd1 Nfd5 21. Bxd5 Nxd5 22. Bxa7 Nxc3 23. bxc3 Bxa2) 20. Bxb6 $14 {[%emt 0:05:43]} axb6 {[%emt 0:00:20]} 21. Bxd5 {[%emt 0:01:10]} Nxd5 {[%emt 0:00:29]} 22. Nxd5 {[%emt 0:00:16]} Rxd5 {[%emt 0:00:15]} 23. Rxd5 {[%emt 0:00:10]} cxd5 {[%emt 0:00:02][%mdl 4096] Endgame KR-KR} 24. Rd1 {[%emt 0:01:19]} Rd8 {[%emt 0:00:08]} 25. g4 {[%emt 0:00:37]} Kc7 {[%emt 0:02:04]} 26. gxf5 {[%emt 0:01:37]} gxf5 {[%emt 0:00:02]} 27. Rg1 {[%emt 0:00:55]} Rd7 {[%emt 0:03:48]} 28. Rg5 {[%emt 0:03:00]} Rf7 {[%emt 0:00:07]} 29. Ke3 {[%emt 0:03:09]} Kc6 {[%emt 0:01:54]} (29... h6 $16 30. Rg6 Re7+ 31. Kd3 Re4) 30. Kd3 $18 {[%emt 0:01:54]} Kc5 {[%emt 0:01:09]} 31. e3 {[%emt 0:07:01]} Rf6 {[%emt 0:06:37]} 32. h4 {[%emt 0:01:31]} b5 {[%emt 0:15:27][%cal Bb6b5,Bb5b4][%mdl 32]} 33. h5 $2 {[%emt 0:06:41]} (33. a3 $18) 33... b4 $1 $14 {[%emt 0:04:04]} 34. b3 {[%emt 0:04:19]} b6 {[%emt 0:04:55]} (34... b5 $14) 35. Kd2 {[%emt 0:12:16]} (35. Rg8 $1 $16) 35... Rf7 $11 {[%emt 0:00:51]} 36. Kd3 {[%emt 0:01:42]} (36. Kd1 $11) 36... Rf6 $16 {[%emt 0:00:07]} 37. Rg7 {[%emt 0:00:16]} (37. Rg8 $1 $16) 37... Rh6 $14 {[%emt 0:00:10]} 38. Rg5 {[%emt 0:00:13]} ({White should try} 38. Rc7+ $11 Kd6 39. Rf7) 38... Rf6 $16 {[%emt 0:00:01]} 39. Rg8 $1 {[%emt 0:00:10]} Rh6 {[%emt 0:00:09] [#]} 40. Rc8+ $1 {[%emt 0:00:50]} Kd6 {[%emt 0:00:38]} 41. Rd8+ {[%emt 0:30:40]} Kc5 {[%emt 0:31:54]} 42. Rc8+ {[%emt 0:01:14]} Kd6 $1 {[%emt 0:00:07]} 43. Kd4 {[%emt 0:02:24] Strongly threatening Rb8. White is more active.} Kd7 $2 {[%emt 0:09:11] This move loses the game for Black.} (43... Rxh5 $16 44. Rd8+ Ke6) 44. Rb8 $18 {[%emt 0:01:36]} Kc6 {[%emt 0:00:41]} 45. Rf8 {[%emt 0:00:00]} Rxh5 {[%emt 0:00:00] [#]} 46. Rf6+ $1 {[%emt 0:00:00]} Kc7 {[%emt 0:00:00]} (46... Kd7 {might work better.} 47. Rxb6 (47. Kxd5 Kc7 $16) 47... Rh2 48. Kxd5 (48. Rxb4 Rxa2 49. Kxd5 Re2 $16) 48... Rxa2 49. Rb7+ (49. Rxb4 Re2 $16) 49... Kd8 50. Rxh7 Re2) 47. Kxd5 {[%emt 0:00:00]} Rh3 {[%emt 0:00:00]} (47... h6 $142 48. Kd4 Kb7) 48. Rxf5 {[%emt 0:00:00] And now Rf7+ would win. White is clearly winning.} Rxe3 {[%emt 0:00:00]} (48... Kd7 $142 49. e4 Ke7 50. Re5+ Kf8) 49. Rf7+ {[%emt 0:00:00]} Kd8 {[%emt 0:00:00]} 50. Rxh7 {[%emt 0:00:00]} Re2 {[%emt 0:00:00]} 51. Rb7 {[%emt 0:00:00]} Rd2+ {[%emt 0:00:00]} 52. Ke5 {[%emt 0:00:00]} Re2+ {[%emt 0:00:00]} 53. Kf5 {[%emt 0:00:00] Weighted Error Value: White=0.15 (very precise) /Black=0.19 (very precise)} 1-0

[Event "Austrian Championship 2022"]
[Site "Vienna"]
[Date "2022.08.13"]
[Round "2.6"]
[White "Teuschler, Barbara"]
[Black "Kersten, Julian"]
[Result "1/2-1/2"]
[ECO "B54"]
[WhiteElo "2097"]
[BlackElo "1999"]
[Annotator "NA RC"]
[PlyCount "66"]
[EventDate "2022.08.12"]
[EventType "swiss"]
[EventCountry "AUT"]
[SourceTitle "playchess.com"]
[Source "ChessBase"]
[SourceQuality "1"]
[TimeControl "40/5400+30:1800+30"]

1. e4 {[%emt 0:00:30]} c5 {[%emt 0:02:08]} 2. Nf3 {[%emt 0:00:00]} e6 {[%emt 0:00:09]} 3. d4 {[%emt 0:00:00]} cxd4 {[%emt 0:00:12]} 4. Nxd4 {[%emt 0:00:00]} a6 {[%emt 0:00:09]} 5. Nc3 {[%emt 0:00:18]} d6 {[%emt 0:00:19]} 6. g4 {[%emt 0:09:46]} Ne7 {[%emt 0:05:20]} 7. Be3 {[%emt 0:00:31]} Nbc6 {[%emt 0:00:27]} 8. Nb3 {[%emt 0:00:41]} Qc7 {[%emt 0:01:43]} 9. f4 {[%emt 0:01:23]} b5 {[%emt 0:07:50]} 10. Bxb5 {[%emt 0:00:49]} Bb7 {[%emt 0:05:37]} 11. Bd3 {[%emt 0:18:43]} g6 {[%emt 0:04:39]} 12. Qd2 {[%emt 0:04:52]} Bg7 {[%emt 0:02:30]} 13. O-O-O {[%emt 0:01:36]} Nb4 {[%emt 0:04:31]} 14. Bd4 Nxd3+ {[%emt 0:00:30]} 15. Qxd3 e5 {[%emt 0:00:30]} 16. fxe5 dxe5 {[%emt 0:00:30]} 17. Bc5 Rc8 {[%emt 0:00:30]} 18. Rhf1 O-O {[%emt 0:00:30]} 19. Bd6 Qd8 {[%emt 0:00:30]} 20. Qg3 Re8 {[%emt 0:00:30]} 21. Bxe5 Bxe5 {[%emt 0:00:30]} 22. Qxe5 Nd5 {[%emt 0:00:30]} 23. Qg3 Qg5+ {[%emt 0:00:30]} 24. Rd2 Nxc3 {[%emt 0:00:30]} 25. bxc3 Bxe4 {[%emt 0:00:30]} 26. Kb2 Qb5 {[%emt 0:00:30]} 27. Re1 a5 {[%emt 0:00:30]} 28. Rd4 Bc6 {[%emt 0:00:30]} 29. Rxe8+ Rxe8 {[%emt 0:00:30]} 30. a4 Qe2 {[%emt 0:00:30]} 31. Rd2 Qe4 {[%emt 0:00:30]} 32. Rd4 Qe2 {[%emt 0:00:30]} 33. Rd2 Qe4 {[%emt 0:00:30]} 1/2-1/2

[Event "Austrian Championship 2022"]
[Site "Vienna"]
[Date "2022.08.13"]
[Round "2.7"]
[White "Neumeier, Klaus"]
[Black "Morgunov, Marc"]
[Result "1-0"]
[ECO "E62"]
[WhiteElo "2257"]
[BlackElo "2376"]
[Annotator "TA"]
[PlyCount "101"]
[EventDate "2022.08.12"]
[EventType "swiss"]
[EventCountry "AUT"]
[SourceTitle "playchess.com"]
[Source "ChessBase"]
[SourceQuality "1"]
[TimeControl "40/5400+30:1800+30"]

{[%evp 17,101,31,22,14,20,16,39,23,33,23,20,20,23,19,20,19,19,18,22,16,16,0,12,0,0,0,0,0,0,0,0,8,12,12,37,37,75,77,56,73,112,113,98,113,222,222,222,222,217,216,486,460,868,868,868,809,3760,2409,29972,5281,5261,5197,29979,29985,29985,29981,29981,29981,29981,29979,29984,29985,29983,29984,29985,29986,29988,29985,29985,29986,29986,29987,29987,29988,29988,29989]} 1. Nf3 {[%emt 0:00:03]} Nf6 {[%emt 0:01:00]} 2. g3 {[%emt 0:00:15]} g6 {[%emt 0:00:05]} 3. Bg2 {[%emt 0:00:14]} Bg7 {[%emt 0:00:06]} 4. O-O {[%emt 0:00:30]} O-O {[%emt 0:00:06]} 5. c4 {[%emt 0:00:20]} d6 {[%emt 0:00:08]} 6. d4 {[%emt 0:00:41]} Nc6 {[%emt 0:00:07]} 7. Nc3 {[%emt 0:00:33]} e5 {[%emt 0:00:05]} 8. dxe5 {[%emt 0:00:37]} dxe5 {[%emt 0:00:05] 8...dxe5 scores better than 8...Nxe5.} 9. Bg5 {[%emt 0:01:15]} Be6 {[%emt 0:00:13]} 10. Qc1 {[%emt 0:00:43] E62: King's Indian: Fianchetto: 6...c6 and Panno Variation (6...Nc6) without ...a6.} Qc8 {[%emt 0:00:06]} 11. Rd1 {[%emt 0:01:06]} Rd8 {[%emt 0:00:13]} 12. Rxd8+ {[%emt 0:05:39] White is slightly better.} Qxd8 {[%emt 0:00:06]} 13. Ne4 {[%emt 0:04:48]} Bf5 {[%emt 0:00:09]} 14. Nfd2 {[%emt 0:10:54]} h6 {[%emt 0:01:31]} 15. Nxf6+ {[%emt 0:09:17]} Bxf6 {[%emt 0:00:18]} 16. Bxf6 {[%emt 0:00:36]} Qxf6 {[%emt 0:00:04]} 17. Ne4 {[%emt 0:01:07]} Bxe4 {[%emt 0:00:04]} 18. Bxe4 {[%emt 0:00:04]} h5 {[%emt 0:00:04] [#]} 19. h4 $146 {[%emt 0:02:51]} ({Predecessor:} 19. e3 Rd8 20. Qc3 h4 21. b4 b6 22. c5 Ne7 23. Qc2 Kf8 24. a4 h3 25. Rd1 {½-½ (34) Ravi,T (2464)-Chen,Q (2432) Seville 2020}) 19... Nd4 {[%emt 0:05:57]} 20. Qd1 {[%emt 0:04:33]} c6 {[%emt 0:06:56]} 21. e3 {[%emt 0:00:32]} Ne6 {[%emt 0:00:08]} 22. b4 {[%emt 0:10:29]} Rd8 {[%emt 0:09:05]} 23. Qe2 {[%emt 0:04:40]} Qe7 {[%emt 0:06:06]} 24. c5 {[%emt 0:07:35]} f5 {[%emt 0:05:29]} 25. Bc2 {[%emt 0:01:06]} Nc7 {[%emt 0:04:15]} 26. Rd1 {[%emt 0:04:36]} Kg7 {[%emt 0:03:37]} 27. Rxd8 {[%emt 0:00:47]} Qxd8 $16 {[%emt 0:00:06][%mdl 4096] Endgame KQB-KQN} 28. Bb3 {[%emt 0:00:22]} Kh6 {[%emt 0:28:49] White now steadily converts the win.} 29. Qb2 {[%emt 0:10:18]} Qe7 {[%emt 0:03:06]} 30. Qd2 {[%emt 0:05:13]} Ne6 {[%emt 0:00:28]} (30... Ne8 $16) 31. Bxe6 $18 {[%emt 0:01:18]} Qxe6 {[%emt 0:00:05] KQ-KQ} 32. Qd8 {[%emt 0:00:07][%cal Rd8h8] [#]} Kg7 {[%emt 0:02:21] Prevents Qh8+.} 33. Qc7+ {[%emt 0:00:23]} Kh6 $2 {[%emt 0:01:47]} (33... Qf7 34. Qxe5+ Kh7) 34. Qxb7 {[%emt 0:05:08]} Qxa2 {[%emt 0:11:08]} (34... Qd5 $142 35. Qb8 (35. Qxa7 Qd1+ 36. Kh2 Qf3 $11) 35... Kh7) 35. Qxc6 {[%emt 0:02:53]} Qb1+ {[%emt 0:00:05]} 36. Kg2 {[%emt 0:00:19]} Qxb4 {[%emt 0:00:04]} 37. Qd5 {[%emt 0:00:14] [#] White wants to mate with Qg8.} Qc3 {[%emt 0:03:19]} 38. c6 {[%emt 0:02:17]} (38. Qg8 $142 e4 39. c6 Qe5 40. Qd8 Kh7 41. c7 Qc5 42. c8=Q Qxc8 43. Qxc8) 38... Qc2 {[%emt 0:00:24]} 39. e4 {[%emt 0:02:59] Intending Qg8 and mate.} f4 {[%emt 0:04:20]} 40. Qxe5 {[%emt 0:01:23][%cal Re5h8] White mates.} Kh7 {[%emt 0:01:14]} 41. Qc7+ {[%emt 0:06:43]} Kg8 {[%emt 0:00:30]} 42. Qb8+ {[%emt 0:00:05]} Kf7 {[%emt 0:01:24]} 43. Qxa7+ {[%emt 0:00:10]} Kg8 {[%emt 0:00:18]} 44. Qb8+ {[%emt 0:00:26]} Kg7 {[%emt 0:00:04]} 45. Qe5+ {[%emt 0:00:42]} Kh7 {[%emt 0:00:06]} 46. Qe7+ {[%emt 0:00:24]} Kh6 {[%emt 0:00:11]} 47. Qf8+ {[%emt 0:01:02]} Kh7 {[%emt 0:00:04]} 48. Qf7+ {[%emt 0:00:08]} Kh8 {[%emt 0:00:03]} 49. Qe8+ {[%emt 0:01:21]} Kg7 {[%emt 0:00:18]} 50. gxf4 {[%emt 0:00:21]} Qe2 {[%emt 0:00:18]} 51. Qe6 {[%emt 0:02:30] Weighted Error Value: White=0.02 (flawless) /Black=0.56} 1-0

[Event "Austrian Championship 2022"]
[Site "Vienna"]
[Date "2022.08.13"]
[Round "2.7"]
[White "Weichhart, Daniel"]
[Black "Ernst, Robert"]
[Result "1/2-1/2"]
[ECO "D02"]
[WhiteElo "1965"]
[BlackElo "2001"]
[Annotator "TA"]
[PlyCount "96"]
[EventDate "2022.08.12"]
[EventType "swiss"]
[EventCountry "AUT"]
[SourceTitle "playchess.com"]
[Source "ChessBase"]
[SourceQuality "1"]
[TimeControl "40/5400+30:1800+30"]

{[%evp 9,96,4,21,-10,-12,-10,-11,-8,-10,0,70,50,65,62,114,114,145,164,150,136,166,168,146,118,103,108,133,79,67,71,75,82,80,85,82,97,145,155,148,89,72,28,123,131,125,112,162,162,148,107,173,166,176,114,114,114,156,159,341,315,330,288,221,225,225,148,148,120,120,120,120,120,120,120,120,98,148,120,120,0,8,0,120,120,120,120,120,120,120]} 1. Nf3 {[%emt 0:00:16]} d5 {[%emt 0:00:29]} 2. g3 {[%emt 0:01:18]} Nf6 {[%emt 0:01:04]} 3. Bg2 {[%emt 0:00:08]} e6 {[%emt 0:00:25]} 4. O-O {[%emt 0:00:10]} Be7 {[%emt 0:00:06]} 5. d4 {[%emt 0:00:30]} O-O {[%emt 0:00:15]} 6. a4 {[%emt 0:00:55] D02: 1 d4 d5 2 Nf3 sidelines, including 2...Nf6 3 g3 and 2...Nf6 3 Bf4.} (6. c4 $5) 6... c5 {[%emt 0:06:38]} 7. c4 {[%emt 0:01:54]} Nc6 {[%emt 0:20:11]} 8. cxd5 {[%emt 0:05:09] The position is equal.} Nxd5 {[%emt 0:05:39] [#]} 9. Nc3 $146 {[%emt 0:00:35]} ({Predecessor:} 9. e4 Ndb4 10. Be3 cxd4 11. Nxd4 e5 12. Nxc6 Nxc6 13. Nc3 Be6 14. Nd5 Rc8 15. Qd2 {1-0 (43) Kahleys,K (2195)-Kumala,A (2220) Katowice 2017}) 9... Bf6 {[%emt 0:20:42]} (9... b6 $11) 10. Nxd5 {[%emt 0:02:11]} Qxd5 {[%emt 0:00:29]} 11. Be3 {[%emt 0:00:25]} cxd4 {[%emt 0:02:40] [#]} (11... Qh5 $1 $14) 12. Nxd4 $1 $16 {[%emt 0:00:29][%mdl 576] Pin} Qd7 {[%emt 0:01:16][%cal Rc6d4]} (12... Qa5 13. Nxc6) 13. Nxc6 {[%emt 0:00:46]} bxc6 {[%emt 0:01:00]} 14. Qc2 {[%emt 0:00:41] Strongly threatening Rfd1. White is more active.} Rb8 15. Rab1 {[%emt 0:00:30]} ({Resist} 15. Bxc6 Qc7 $16) ({Don't play} 15. Qxc6 $6 Rxb2 16. Rab1 Qxc6 17. Bxc6 Rxe2 $14) 15... a5 16. Bxc6 {[%emt 0:00:30]} Qc7 17. Rfc1 {[%emt 0:00:30][%cal Oc2h7] And now Qxh7+! would win.} Bb7 18. Bb5 {[%emt 0:00:30]} ({White should play} 18. Qe4) 18... Qxc2 19. Rxc2 {[%emt 0:00:30]} Be4 20. Bd3 {[%emt 0:00:30]} Bxd3 21. exd3 {[%emt 0:00:30]} Rfd8 22. Rc5 {[%emt 0:00:30]} Rd5 (22... Ra8 $142) 23. Rxd5 {[%emt 0:00:30]} exd5 {[%mdl 4096] Endgame KRB-KRB} 24. b3 {[%emt 0:00:30]} (24. Bd2 $142) 24... Bc3 25. Kf1 {[%emt 0:00:30]} f5 (25... d4 $1 $11 {remains equal.}) 26. Ke2 {[%emt 0:00:30]} Kf7 27. d4 {[%emt 0:00:30]} Rb7 (27... Ke6 $16) 28. Kd3 {[%emt 0:00:30]} Bb4 29. Bf4 {[%emt 0:00:30]} g6 (29... Ke7 $16) 30. Rc1 $18 {[%emt 0:00:30]} Ke6 31. Rc7 {[%emt 0:00:30]} (31. Rc6+ $18 Kf7 32. Be5) 31... Rxc7 $16 32. Bxc7 {[%emt 0:00:30] KB-KB} Be1 33. f3 {[%emt 0:00:30][%cal Bf2f3,Bf3g4][%mdl 32]} g5 {Against Bf4} (33... Bb4 $16 34. Bf4 Be7) 34. g4 {[%emt 0:00:30]} fxg4 35. fxg4 {[%emt 0:00:30]} Kd7 36. Bg3 {[%emt 0:00:30]} Bb4 37. Bf2 {[%emt 0:00:30]} Kc6 38. Be3 {[%emt 0:00:30]} Be7 39. Bd2 {[%emt 0:00:30]} Kb6 40. Ke2 {[%emt 0:00:30]} Ka6 41. Kf3 {[%emt 0:30:30]} Kb6 42. h4 {[%emt 0:00:30]} h6 (42... gxh4 $142 43. Kg2 Bd6) 43. Be1 {[%emt 0:00:30]} gxh4 44. Kf4 {[%emt 0:00:30]} (44. Kg2 $16) 44... Bd6+ 45. Kf3 {[%emt 0:00:30]} ({White should try} 45. Ke3 $11 h3 46. Kf3) 45... Be7 $1 (45... h3 $2 46. Bd2 $18) 46. Bd2 {[%emt 0:00:30] White is better.} Bg5 47. Bf4 {[%emt 0:00:30]} Kc6 {[#] aiming for ...Bxf4.} 48. Be5 {[%emt 0:00:30]} Kd7 {Weighted Error Value: White=0.17 (very precise) /Black=0.23 (precise)} 1/2-1/2

[Event "Austrian Championship 2022"]
[Site "Vienna"]
[Date "2022.08.13"]
[Round "2.8"]
[White "Marakovits, Nico"]
[Black "Leisch, Lukas"]
[Result "1/2-1/2"]
[ECO "D47"]
[WhiteElo "2259"]
[BlackElo "2404"]
[Annotator "TA"]
[PlyCount "86"]
[EventDate "2022.08.12"]
[EventType "swiss"]
[EventCountry "AUT"]
[SourceTitle "playchess.com"]
[Source "ChessBase"]
[SourceQuality "1"]
[TimeControl "40/5400+30:1800+30"]

{[%evp 23,86,0,37,0,0,0,0,0,0,0,0,-8,0,-19,0,-20,-14,-7,0,0,0,-32,-48,-49,-31,-100,-98,-91,-91,-83,-75,-81,-74,-75,-79,-84,-65,-80,-84,-643,-238,-543,-86,-69,-74,-56,-50,-52,0,0,2171,143,525,509,529,-29994,-1285,-2606,-1653,-29988,-1235,-1647,-1379,-1752,-1354]} 1. d4 {[%emt 0:00:04] Hansen,LB} Nf6 {[%emt 0:00:32]} 2. c4 {[%emt 0:00:09]} e6 {[%emt 0:00:06]} 3. Nf3 {[%emt 0:00:04]} d5 {[%emt 0:00:07]} 4. Nc3 {[%emt 0:00:08]} c6 {[%emt 0:00:07]} 5. e3 {[%emt 0:00:05]} Nbd7 {[%emt 0:00:06]} 6. Bd3 {[%emt 0:00:09]} dxc4 {[%emt 0:00:09]} 7. Bxc4 {[%emt 0:00:11]} b5 {[%emt 0:00:05]} 8. Bd3 {[%emt 0:00:05]} Bb7 {[%emt 0:00:07]} 9. e4 {[%emt 0:03:21]} b4 {[%emt 0:01:19]} 10. Na4 {[%emt 0:00:56]} c5 {[%emt 0:00:09]} 11. e5 {[%emt 0:02:46]} Nd5 {[%emt 0:00:08]} 12. O-O {[%emt 0:03:45]} h6 {[%emt 0:00:05]} 13. Qe2 {[%emt 0:09:57] D47: Semi-Slav: Meran System.} Bc6 {[%emt 0:01:07]} 14. Nxc5 {[%emt 0:05:33]} Nxc5 {[%emt 0:00:07]} 15. dxc5 {[%emt 0:00:05] The position is equal.} Bxc5 {[%emt 0:00:08]} 16. Bd2 {[%emt 0:01:26]} Qb6 {[%emt 0:07:41] [#]} 17. Rfc1 $146 {[%emt 0:05:45][%cal Oc1c5] Hoping for Rxc5!} ({Predecessor:} 17. Rac1 Rc8 18. Bc4 O-O 19. Ne1 Bd4 20. Nd3 a5 21. Qg4 Kh7 22. Qe4+ Kg8 23. Qg4 {0-1 (41) Hansen,L (2545)-Rasmussen,K (2440) Tonder 1993 CBM 036 [Hansen,LB]}) 17... Ke7 {[%emt 0:14:30]} 18. g3 {[%emt 0:08:52]} Rhc8 {[%emt 0:01:43]} 19. Be1 {[%emt 0:02:22]} Kf8 {[%emt 0:13:00]} 20. Nd2 {[%emt 0:08:18]} Bb7 {[%emt 0:02:31]} 21. Nc4 {[%emt 0:05:29]} Nf4 {[%emt 0:17:09]} 22. Nxb6 {[%emt 0:10:01]} Nxe2+ {[%emt 0:00:02]} 23. Bxe2 {[%emt 0:00:08]} axb6 {[%emt 0:00:05]} 24. Bc4 {[%emt 0:04:51]} ({White should play} 24. Rc4 $15) 24... g5 $17 {[%emt 0:01:21]} 25. Bb3 {[%emt 0:02:24]} Kg7 {[%emt 0:00:32]} 26. Rd1 {[%emt 0:01:44][%cal Ob3e6]} Rc7 {[%emt 0:11:57]} 27. h3 {[%emt 0:04:43]} Bf3 {[%emt 0:02:06]} 28. Rd3 {[%emt 0:03:03]} Be4 {[%emt 0:00:07]} 29. Rdd1 {[%emt 0:02:19][%cal Oe1b4]} Rac8 {[%emt 0:03:40]} 30. Kh2 {[%emt 0:02:11]} h5 {[%emt 0:01:25]} 31. f4 $2 {[%emt 0:03:57][%mdl 8192]} (31. Rac1 $17) 31... gxf4 $2 {[%emt 0:03:44]} (31... Be3 32. Bxb4 Rc2+ $1 {[%mdl 512]} 33. Rd2 Bxd2 34. Bxc2 Rxc2 35. Bxd2 Rxd2+ 36. Kg1 Rxb2) 32. gxf4 $2 {[%emt 0:00:10]} (32. Bd2 {nothing else works.} f3 33. Bf4) 32... Rg8 $2 {[%emt 0:02:26]} (32... Kh7 $19 {has better winning chances. And now ...Rg8 would win.} 33. h4 Be3) 33. Bh4 {[%emt 0:02:42]} Be3 $40 {[%emt 0:04:51][%mdl 128] Black is out for blood.} 34. Bg5 {[%emt 0:00:30] aiming for Re1.} Rgc8 {[%emt 0:00:28][%cal Oc7c2]} 35. Kg3 $1 {[%emt 0:04:07] [#] Re1 is the strong threat.} (35. Re1 {gets mated.} Rc2+ $1 {[%mdl 512]} 36. Bxc2 Rxc2+) 35... Rc1 {[%emt 0:08:39]} (35... Rc2 $1 $15 36. Bxc2 Rxc2) 36. Raxc1 $11 {[%emt 0:00:30]} Rc6 {[%emt 0:06:11][%mdl 8192]} (36... Rxc1 $11 37. Rxc1 Bxc1) 37. Rc5 $2 Rxc5 {[%emt 0:00:00][%mdl 8192]} (37... Bxc5 $16 {is a better chance.} 38. Rd8 Kg6) 38. Bf6+ {[%emt 0:02:23]} Kg6 {[%emt 0:00:00]} 39. Rc1 $4 {[%emt 0:02:28][%mdl 8192]} Bxc1 {[%emt 0:00:00]} (39... Rxc1 $142 40. f5+ Kxf5 41. Kh4 Kg6 42. Kg3 Rg1+ 43. Kh2 Rg2+ 44. Kh1 Rxb2#) 40. Bd1 {[%emt 0:01:46]} Bd2 {[%emt 0:00:00] ( -> ...Be1+)} 41. h4 {[%emt 0:08:56]} Bb1 {[%emt 0:08:30]} (41... Be1+ $142 42. Kh3 Rc1 43. f5+ exf5 44. Bg5 Rxd1 45. Bf4 Bf2 46. e6 fxe6 47. Bc7 Rh1+ 48. Bh2 f4 49. b3 f3 50. a4 Bf5#) 42. a3 {[%emt 0:01:25]} Kf5 {[%emt 0:03:30]} 43. Bg5 {[%emt 0:01:49]} Be1+ {[%emt 0:06:31][%mdl 32768] Weighted Error Value: White=1.26/Black=1.39. An unexpected result.} 1/2-1/2

[Event "Austrian Championship 2022"]
[Site "Vienna"]
[Date "2022.08.13"]
[Round "2.8"]
[White "Hoegl, Emanuel"]
[Black "Hengl, Philip"]
[Result "1/2-1/2"]
[ECO "E06"]
[WhiteElo "2094"]
[BlackElo "1968"]
[Annotator "NA RC"]
[PlyCount "114"]
[EventDate "2022.08.12"]
[EventType "swiss"]
[EventCountry "AUT"]
[SourceTitle "playchess.com"]
[Source "ChessBase"]
[SourceQuality "1"]
[TimeControl "40/5400+30:1800+30"]

1. d4 {[%emt 0:00:02]} d5 {[%emt 0:00:12]} 2. c4 {[%emt 0:00:03]} e6 {[%emt 0:00:05]} 3. Nf3 {[%emt 0:00:03]} Nf6 {[%emt 0:00:05]} 4. g3 {[%emt 0:00:05]} Be7 {[%emt 0:00:05]} 5. Bg2 {[%emt 0:00:04]} O-O {[%emt 0:00:07]} 6. O-O {[%emt 0:00:03]} c6 {[%emt 0:00:05]} 7. Qc2 {[%emt 0:05:55]} b6 {[%emt 0:00:32]} 8. Ne5 {[%emt 0:03:05]} a5 {[%emt 0:06:41]} 9. cxd5 {[%emt 0:28:26]} cxd5 {[%emt 0:00:54]} 10. Nc3 {[%emt 0:00:15]} Ba6 {[%emt 0:11:46]} 11. Bf4 {[%emt 0:07:20]} Nfd7 {[%emt 0:10:49]} 12. Nxd7 {[%emt 0:09:21]} Nxd7 13. Rfc1 {[%emt 0:00:30]} Rc8 14. Qd1 {[%emt 0:00:30]} b5 15. e4 {[%emt 0:00:30]} Nb6 16. exd5 {[%emt 0:00:30]} exd5 17. Qf3 {[%emt 0:00:30]} Bf6 18. Rd1 {[%emt 0:00:30]} b4 19. Nxd5 {[%emt 0:00:30]} Nxd5 20. Qxd5 {[%emt 0:00:30]} Qxd5 21. Bxd5 {[%emt 0:00:30]} Rfd8 22. Bb3 {[%emt 0:00:30]} Bxd4 23. Bg5 {[%emt 0:00:30]} Rd6 24. Be3 {[%emt 0:00:30]} Rcd8 25. Bxd4 {[%emt 0:00:30]} Rxd4 26. Rxd4 {[%emt 0:00:30]} Rxd4 27. Re1 {[%emt 0:00:30]} Kf8 28. Re5 {[%emt 0:00:30]} Bc4 29. Bxc4 {[%emt 0:00:30]} Rxc4 30. Rxa5 {[%emt 0:00:30]} Rc2 31. b3 {[%emt 0:00:30]} g6 32. Ra4 {[%emt 0:00:30]} h5 33. Rxb4 {[%emt 0:00:30]} Rxa2 34. Rd4 {[%emt 0:00:30]} Rb2 35. b4 {[%emt 0:00:30]} Kg7 36. Kg2 {[%emt 0:00:30]} Rb3 37. h4 {[%emt 0:00:30]} Kf6 38. g4 {[%emt 0:00:30]} hxg4 39. Rxg4 {[%emt 0:00:30]} Kg7 40. f3 {[%emt 0:00:30]} Rb2+ 41. Kg3 {[%emt 0:30:30]} Kh6 42. Rd4 {[%emt 0:00:30]} Rb3 43. Rf4 {[%emt 0:00:30]} Rb1 44. Kf2 {[%emt 0:00:30]} g5 45. hxg5+ {[%emt 0:00:30]} Kxg5 46. Rc4 {[%emt 0:00:30]} f5 47. f4+ {[%emt 0:00:30]} Kg4 48. Rd4 {[%emt 0:00:30]} Rb3 49. Ke2 {[%emt 0:00:30]} Rf3 50. Kd2 {[%emt 0:00:30]} Rxf4 51. Ke3 {[%emt 0:00:30]} Rxd4 52. Kxd4 {[%emt 0:00:30]} f4 53. b5 {[%emt 0:00:30]} f3 54. Ke3 {[%emt 0:00:30]} Kg3 55. b6 {[%emt 0:00:30]} f2 56. b7 {[%emt 0:00:30]} f1=Q 57. b8=Q+ {[%emt 0:00:30]} Kg2 1/2-1/2